Workbook

Sheet Read Me

Sheet Control
G3: Time Series of Output, Supply and Demand | O3: Time Series of Price, Marginal Cost, and | V3: Supply and Demand Schedules
G4: for Good #2 | O4: Marginal Values for Good #2 | V4: for Good #2
A26: SIMLEN: | B26: 18
A27: DT: | B27: 0.01
A28: PER: | B28: =B26/30 -> 0.6
A29: TIME: | B29: 18.00031662
G47: Time Series of Interest Rates | O47: Time Series of Household Utility | V47: Time Series of Equity Trades
G48: and the Currency Value | O48: and Leisure

Sheet 1 DT
AL4: =-SUM(AL6:AL11) -> -2265.721962 | AM4: =-SUM(AM6:AM11) -> -19015.50142 | AN4: =-SUM(AN6:AN11) -> -86639.00528 | AO4: =-SUM(AO6:AO11) -> -2606.079938 | AP4: =-SUM(AP6:AP11) -> -150931.2561
U5: H | V5: 0 | W5: 1 | X5: 2 | Y5: 3 | Z5: L | AA5: N | AJ5: U | AK5: 0 | AL5: 1 | AM5: 2 | AN5: 3 | AO5: L | AP5: N | AQ5: t | AR5: Z | AT5: Z
H6: < Temporal Parameters, i.e.: Turnover Fractions > | U6: 0 | W6: =SIGN(AL6) -> 1 | X6: 1 | Y6: 1 | Z6: 0 | AA6: 0 | AB6: 0 | AJ6: 0 | AL6: 709.0221284 | AM6: 5283.704347 | AN6: 22353.65259 | AO6: 876 | AP6: 8766 | AQ6: 0 | AR6: =AC21+AR21 -> -1747965.145 | AT6: =Utility!F37 -> -1747827.277 | AU6: 0
T7: =W6-V7 -> 6 | U7: 1 | V7: =-SUM(W7:AA7) -> -5 | W7: 1 | X7: 1 | Y7: 1 | Z7: =SIGN(AO7) -> 1 | AA7: 1 | AB7: 1 | AC7: =1/(1-V7) -> 0.1666666667 | AJ7: 1 | AL7: 579.0221284 | AM7: 5123.677045 | AN7: 24008.40059 | AO7: 997.6057642 | AP7: 56314.33399 | AQ7: 1 | AR7: =AL6 -> 709.0221284 | AT7: =Utility!G37 -> 709.0221284 | AU7: 1
T8: =X6-V8 -> 6 | U8: 2 | V8: =-SUM(W8:AA8) -> -5 | W8: 1 | X8: 1 | Y8: 1 | Z8: 1 | AA8: 1 | AB8: 2 | AC8: =1/(1-V8) -> 0.1666666667 | AI8: Spatial Parameters, | AJ8: 2 | AL8: 493.6502202 | AM8: 4433.704347 | AN8: 20427.11809 | AO8: 836.6047242 | AP8: 47868.89871 | AQ8: 2 | AR8: =AM6 -> 5283.704347 | AT8: =Utility!H37 -> 5283.704347 | AU8: 2
T9: =Y6-V9 -> 6 | U9: 3 | V9: =-SUM(W9:AA9) -> -5 | W9: 1 | X9: 1 | Y9: 1 | Z9: 1 | AA9: 1 | AB9: 3 | AC9: =1/(1-V9) -> 0.1666666667 | AI9: i.e.: production and | AJ9: 3 | AL9: 450.2035597 | AM9: 3960.215016 | AN9: 18653.65259 | AO9: 759.6559399 | AP9: 43341.46156 | AQ9: 3 | AR9: =AN6 -> 22353.65259 | AT9: =Utility!I37 -> 22353.65259 | AU9: 3
E10: i | G10: n | I10: V0 | T10: =Z10-V10 -> 3 | U10: L | V10: =-SUM(W10:Y10)-AA10 -> -4 | W10: 1 | X10: 1 | Y10: 1 | Z10: -1 | AA10: 1 | AB10: L | AC10: =1/(1-V10) -> 0.2 | AI10: utility tradeoffs > | AJ10: L | AL10: 17.85123189 | AM10: 130.8709568 | AN10: 641.8627332 | AO10: =Zl -> -863.7864907 | AP10: 3337.273201 | AQ10: L | AR10: =M59 -> -863.7864907 | AS10: ZL | AT10: =Utility!J41 -> -863.2450447 | AU10: L
E11: =-E78 -> -0.09999946146 | G11: =(1-1/NPV)/Term -> -0.136296451 | I11: 1 | J11: 0.1 | K11: 0.3333333333 | L11: 1 | M11: 1 | N11: 1 | P11: < V | T11: =AA11-V11 -> 2 | U11: N | V11: =-SUM(W11:Y11) -> -3 | W11: 1 | X11: 1 | Y11: 1 | Z11: 0 | AA11: -1 | AB11: N | AC11: =1/(1-V11) -> 0.25 | AJ11: N | AL11: 15.97269368 | AM11: 83.32970625 | AN11: 554.3186888 | AO11: 0 | AP11: =Zn -> -8696.711347 | AQ11: N | AR11: =N59 -> -8696.711347 | AS11: ZN | AT11: =Utility!K42 -> -8725.940102 | AU11: N
E12: =-GPE!D26 -> -0.1 | G12: =IState!F14 -> -0.1355310143 | I12: 0 | J12: 1 | K12: 2 | L12: 3 | M12: L | N12: N | T12: h | V12: -N | AC12: 1/(N + 1)
E15: k | G15: g | AJ15: ───
E16: =-E19-SUM(E22:E26) -> -441990.5258 | G16: =-G19-SUM(G22:G26) -> 324284.4125 | I16: =-I19-SUM(I21:I26) -> 0 | J16: 0.001338937652 | K16: 0.07244625977 | L16: 0.1002830235 | M16: 0 | N16: 0 | P16: < Markets | T16: =Iota*Kappa+Nu*Gamma -> 0 | V16: =V0*I16 -> 0 | W16: =J11*J16 -> 0.0001338937652 | X16: =K11*K16 -> 0.02414875326 | Y16: 0.1002830235 | Z16: 0 | AA16: 0 | AC16: < Market | AI16: =-AI69 -> 17922535.86 | AJ16: U | AK16: =SUM(V72:V76) -> -7357615.738 | AL16: =SUM(AL7:AL11) -> 1556.699834 | AM16: =SUM(AM7:AM11) -> 13731.79707 | AN16: =SUM(AN7:AN11) -> 64285.35269 | AO16: =SUM(AO7:AO9) -> 2593.866428 | AP16: =SUM(AP7:AP10) -> 150861.9675
I17: 0 | J17: 1 | K17: 2 | L17: 3 | M17: L | N17: N | V17: 0 | W17: 1 | X17: 2 | Y17: 3 | Z17: L | AA17: N | AC17: Pressure | AK17: 0 | AL17: 1 | AM17: 2 | AN17: 3 | AO17: L | AP17: N
E19: 0 | G19: 0 | I19: =I29+I39+I49 -> 0 | J19: 0 | K19: 0 | L19: 0 | M19: 0 | N19: 0 | T19: =Iota*E19+Nu*G19 -> 0 | V19: =V0*I19 -> 0 | W19: =J$11*J19 -> 0 | X19: =K$11*K19 -> 0 | Y19: =L$11*L19 -> 0 | Z19: =M$11*M19 -> 0 | AA19: =N$11*N19 -> 0 | AI19: =AI69+T19 -> -17922535.86 | AK19: =V69+V19 -> 9105575.959 | AL19: =AL4+W19 -> -2265.721962 | AM19: =AM4+X19 -> -19015.50142 | AN19: =AN4+Y19 -> -86639.00528 | AO19: =AO4+Z19 -> -2606.079938 | AP19: =AP4+AA19 -> -150931.2561
I20: 0 | J20: 1 | K20: 2 | L20: 3 | M20: L | N20: N | T20: e | U20: E | V20: 0 | W20: 1 | X20: 2 | Y20: 3 | Z20: L | AA20: N | AC20: Y | AI20: u + e | AJ20: m | AK20: 0 | AL20: 1 | AM20: 2 | AN20: 3 | AO20: L | AP20: N | AR20: l | AT20: (u + e)/h
D21: 0 | F21: 0 | H21: 0 | I21: =I31+I41+I51 -> 309552.4676 | J21: -1000.085265 | K21: -2249.943824 | L21: -3199.895715 | M21: -876 | N21: -8766 | O21: 0 | T21: =Iota*E21+Nu*G21 -> 0 | U21: 0 | V21: =V0*I21 -> 309552.4676 | W21: =J$11*J21 -> -100.0085265 | X21: -749.9812746 | Y21: -3199.895715 | Z21: -876 | AA21: -8766 | AB21: 0 | AC21: =V53 -> -309552.4676 | AE21: =-GPE!F14 -> -309552.4676 | AI21: =AI71+T19 -> 0 | AJ21: 0 | AK21: =AR21 -> -1438412.677 | AL21: =AR22 -> 609.0250601 | AM21: =AR23 -> 4533.730383 | AN21: =AR24 -> 19153.76244 | AO21: =AO6+Z21 -> 0 | AP21: 0 | AQ21: 0 | AR21: =-W63*AR22-X63*AR23-Y63*AR24-Z63*AR25-AA63*AR26 -> -1438412.677 | AU21: 0
D22: 1 | E22: =E32 -> 167214.7774 | F22: 1 | H22: 1 | I22: -84961.57273 | J22: 300.0838961 | K22: 600.0832699 | L22: 800.1356881 | M22: 19.7908773 | N22: 610.0322303 | O22: 1 | T22: =Iota*E22+G$11*G22 -> -16721.38769 | U22: 1 | V22: -84961.57273 | W22: 30.00838961 | X22: 200.0277566 | Y22: 800.1356881 | Z22: 19.7908773 | AA22: 610.0322303 | AB22: 1 | AC22: =AR7-AR22 -> 99.99706837 | AI22: =AI72+T22 -> 6722071.025 | AJ22: 1 | AK22: =V72+V22 -> -2845967.076 | AL22: =AL7+W22 -> 609.030518 | AM22: 5323.704801 | AN22: 24808.53628 | AO22: 1017.396641 | AP22: 56924.36622 | AQ22: 1 | AR22: =AR7*AC32 -> 609.0250601 | AT22: =AI22/T7 -> 1120345.171 | AU22: 1
C23: Monetary | D23: 2 | E23: =E33 -> 143439.081 | F23: 2 | H23: 2 | I23: -72898.30719 | J23: 250.0566871 | K23: 300.08628 | L23: 700.1210967 | M23: 29.82213604 | N23: 608.5562812 | O23: 2 | P23: < Physical | S23: Dividends > | T23: -14343.83086 | U23: 2 | V23: -72898.30719 | W23: 25.00566871 | X23: 100.02876 | Y23: 700.1210967 | Z23: 29.82213604 | AA23: 608.5562812 | AB23: 2 | AC23: =AR8-AR23 -> 749.9739649 | AD23: < Production | AG23: U + E | AH23: > | AI23: =AI73+T23 -> 5724591.213 | AJ23: 2 | AK23: =V73+V23 -> -2423658.829 | AL23: 518.6558889 | AM23: 4533.733107 | AN23: 21127.23919 | AO23: 866.4268602 | AP23: 48477.45499 | AQ23: 2 | AR23: =AR8*AC33 -> 4533.730383 | AT23: =AI23/T8 -> 954098.5355 | AU23: 2
C24: Stocks > | D24: 3 | E24: =E34 -> 131336.6674 | F24: 3 | H24: 3 | I24: -66742.94956 | J24: 200.070584 | K24: 450.0599888 | L24: 500.093213 | M24: 25.83807053 | N24: 607.719021 | O24: 3 | P24: Stocks | T24: -13133.596 | U24: 3 | V24: -66742.94956 | W24: 20.0070584 | X24: 150.0199963 | Y24: 500.093213 | Z24: 25.83807053 | AA24: 607.719021 | AB24: 3 | AC24: =AR9-AR24 -> 3199.89015 | AI24: =AI74+T24 -> 5189862.205 | AJ24: 3 | AK24: =V74+V24 -> -2197265.133 | AL24: 470.2106181 | AM24: 4110.235012 | AN24: 19153.7458 | AO24: 785.4940104 | AP24: 43949.18058 | AQ24: 3 | AR24: =AR9*AC34 -> 19153.76244 | AT24: =AI24/T9 -> 864977.0341 | AU24: 3
D25: L | F25: L | G25: =G35+G45+G55 -> -296569.1854 | H25: L | I25: -62752.87628 | J25: 200.0517589 | K25: 600.1320893 | L25: 900.2048463 | M25: 800.5489161 | N25: 201.0741908 | O25: L | T25: 40421.32746 | U25: L | V25: -62752.87628 | W25: 20.00517589 | X25: 200.0440298 | Y25: 900.2048463 | Z25: 800.5489161 | AA25: 201.0741908 | AB25: L | AC25: =AR10-AR25 -> -800.546458 | AD25: < | AE25: YL = - Leisure | AI25: =AI75+T25 -> 208918.2909 | AJ25: L | AK25: =V75+V25 -> -141525.0889 | AL25: 37.85640778 | AM25: 330.9149865 | AN25: 1542.06758 | AO25: =AR25 -> -63.24003268 | AP25: =AP10+AA25 -> 3538.347392 | AQ25: L | AR25: =AR10*AC35 -> -63.24003268 | AT25: =AI25/T10 -> 69639.4303 | AU25: L
D26: N | F26: N | G26: =G36+G46+G56 -> -27715.2271 | H26: N | I26: -22196.76188 | J26: 49.82099985 | K26: 299.5097496 | L26: 299.2405874 | M26: 0 | N26: 6738.618277 | O26: N | T26: 3777.487094 | U26: N | V26: -22196.76188 | W26: 4.982099985 | X26: 99.8365832 | Y26: 299.2405874 | Z26: 0 | AA26: 6738.618277 | AB26: N | AC26: =AR11-AR26 -> -6738.182523 | AD26: < | AE26: YN = - Leisure | AI26: =AI76+T26 -> 77093.1282 | AJ26: N | AK26: =V76+V26 -> -58752.07882 | AL26: 20.95479366 | AM26: 183.1662894 | AN26: 853.5592762 | AO26: =AO11+Z26 -> 0 | AP26: =AR26 -> -1958.528824 | AQ26: N | AR26: =AR11*AC36 -> -1958.528824 | AT26: =AI26/T11 -> 38546.5641 | AU26: N
E27: Investment | G27: Saving | AN27: l
E29: 0 | G29: 0 | I29: 0 | J29: 0 | K29: 0 | L29: 0 | M29: 0 | N29: 0 | X29: - Y/l
H30: A | I30: 0 | J30: 1 | K30: 2 | L30: 3 | M30: L | N30: N | T30: w | U30: W | V30: 0 | W30: 1 | X30: 2 | Y30: 3 | Z30: L | AA30: N | AC30: l/Z | AI30: b = e/w | AK30: Q = E0/W0 | AR30: z = pl | AT30: q = P0*Q
D31: 0 | E31: 0 | F31: 0 | G31: 0 | H31: 0 | I31: 103184.1559 | J31: -333.3241734 | K31: -749.9766926 | L31: -1066.630894 | M31: -292 | N31: -2922 | O31: 0 | U31: 0 | V31: =-AC21/AR21 -> -0.2152042126 | W31: =-AC22/AR22 -> -0.1641920422 | X31: =-AC23/AR23 -> -0.1654209451 | Y31: =-AC24/AR24 -> -0.1670632681 | AB31: 0 | AC31: =AR21/Z0 -> 0.8229069564 | AJ31: 0 | AQ31: 0 | AU31: 0
D32: 1 | E32: 167214.7774 | F32: 1 | H32: 1 | I32: -28320.57704 | J32: 100.0183267 | K32: 200.0289008 | L32: 266.7124754 | M32: 6.59696554 | N32: 203.3495925 | O32: 1 | T32: =W31-V32 -> -0.01492517098 | U32: 1 | V32: =-SUM(W32:AA32) -> -0.1492668712 | W32: =W22/AL22 -> 0.04927239066 | X32: 0.03757303684 | Y32: 0.03225243437 | Z32: 0.01945246966 | AA32: 0.0107165397 | AB32: 1 | AC32: =(1-W32)*(1-X32)*(1-Y32)*(1-Z32)*(1-AA32) -> 0.8589648131 | AI32: =T22/T32 -> 1120348.15 | AJ32: 1 | AK32: =V22/V32 -> 569192.4271 | AQ32: 1 | AR32: =AR55*AR22 -> 1120343.5 | AT32: =P0*AK32 -> 1120343.386 | AU32: 1
D33: 2 | E33: 143439.081 | F33: 2 | H33: 2 | I33: -24299.40244 | J33: 83.35215328 | K33: 100.0266026 | L33: 233.3735141 | M33: 9.940689683 | N33: 202.8552348 | O33: 2 | R33: E | S33: > | T33: =X31-V33 -> -0.01503389483 | U33: 2 | V33: =-SUM(W33:AA33) -> -0.1503870503 | W33: 0.04821244536 | X33: 0.02206322199 | Y33: 0.0331383145 | Z33: 0.03441968088 | AA33: 0.01255338758 | AB33: 2 | AC33: =(1-W33)*(1-X33)*(1-Y33)*(1-Z33)*(1-AA33) -> 0.8580590594 | AI33: =T23/T33 -> 954099.4544 | AJ33: 2 | AK33: =V23/V33 -> 484737.9282 | AQ33: 2 | AR33: =AR56*AR23 -> 954097.4437 | AT33: =P0*AK33 -> 954111.3089 | AU33: 2
D34: 3 | E34: 131336.6674 | F34: 3 | H34: 3 | I34: -22247.68984 | J34: 66.68156233 | K34: 150.0200011 | L34: 166.6981878 | M34: 8.612695265 | N34: 202.577272 | O34: 3 | R34: U + E | T34: =Y31-V34 -> -0.01518377072 | U34: 3 | V34: =-SUM(W34:AA34) -> -0.1518794974 | W34: 0.04254914209 | X34: 0.0364991286 | Y34: 0.02610942101 | Z34: 0.0328940389 | AA34: 0.01382776682 | AB34: 3 | AC34: =(1-W34)*(1-X34)*(1-Y34)*(1-Z34)*(1-AA34) -> 0.8568515755 | AI34: =T24/T34 -> 864975.9172 | AJ34: 3 | AK34: =V24/V34 -> 439446.737 | AQ34: 3 | AR34: 864975.4499 | AT34: =P0*AK34 -> 864964.5037 | AU34: 3
D35: L | F35: L | G35: -98854.49834 | H35: L | I35: -20917.57823 | J35: 66.68398317 | K35: 200.0439755 | L35: 300.0682956 | M35: 266.8496495 | N35: 67.02502147 | O35: L | T35: =Z35-V35 -> 0.58042936 | U35: L | V35: =-SUM(W35:Y35)-AA35 -> -1.773558756 | W35: =W25/AL25 -> 0.5284488694 | X35: 0.604517891 | Y35: 0.5837648481 | Z35: =(AO6+AC25)/AR25 -> -1.193129396 | AA35: =AA25/AP25 -> 0.05682714797 | AB35: L | AC35: =(1-W35)*(1-X35)*(1-Y35)*(1-AA35) -> 0.07321257436 | AI35: =T25/T35 -> 69640.39079 | AJ35: L | AK35: =V25/V35 -> 35382.46255 | AQ35: L | AR35: 69639.14512 | AT35: =P0*AK35 -> 69643.4211 | AU35: L
D36: N | F36: N | G36: -9231.991468 | H36: N | I36: -7398.908322 | J36: 16.60456748 | K36: 99.83694888 | L36: 99.74694899 | M36: 0 | N36: 2246.192879 | O36: N | T36: =AA36-V36 -> 0.09801630823 | U36: N | V36: =-SUM(W36:Y36) -> -1.133394216 | W36: 0.2377546668 | X36: 0.5450598115 | Y36: 0.350579738 | AA36: =(AP6+AC26)/AR26 -> -1.035377908 | AB36: N | AC36: =(1-W36)*(1-X36)*(1-Y36)*(1-Z36) -> 0.2252033839 | AI36: =T26/T36 -> 38539.37331 | AJ36: N | AK36: =V26/V36 -> 19584.32605 | AQ36: N | AR36: 38546.40902 | AT36: =P0*AK36 -> 38547.89543 | AU36: N
Z37: (t+Y)/l
G39: 0 | I39: 0 | J39: 0 | K39: 0 | L39: 0 | M39: 0 | N39: 0 | T39: =T41-V39 -> -9105578.594 | V39: =-SUM(W39:AA39) -> 9105578.594 | W39: =-SUM(W41:W46) -> -2117536.308 | X39: =-SUM(X41:X46) -> -2033081.809 | Y39: =-SUM(Y41:Y46) -> -1987790.618 | Z39: =-SUM(Z41:Z46) -> -1457994.63 | AA39: =-SUM(AA41:AA46) -> -1509175.229 | AI39: =AI41-AK39 -> -17922541.05 | AK39: =-SUM(AL39:AP39) -> 17922541.05 | AL39: =-SUM(AL41:AL46) -> -4167951.435 | AM39: =-SUM(AM41:AM46) -> -4001702.74 | AN39: =-SUM(AN41:AN46) -> -3912579.203 | AO39: =-SUM(AO41:AO46) -> -2869783.131 | AP39: =-SUM(AP41:AP46) -> -2970524.539
H40: B | I40: 0 | J40: 1 | K40: 2 | L40: 3 | M40: L | N40: N | T40: hQ | U40: HQ | V40: 0 | W40: 1 | X40: 2 | Y40: 3 | Z40: L | AA40: N | AI40: hb | AJ40: Hb | AK40: 0 | AL40: 1 | AM40: 2 | AN40: 3 | AO40: L | AP40: N | AT40: (PU + s)/N
F41: 0 | H41: 0 | I41: 103184.1559 | J41: -333.3487943 | K41: -749.9807666 | L41: -1066.63186 | M41: -292 | N41: -2922 | O41: 0 | T41: =V41-V41 -> 0 | U41: 0 | V41: =-V39-SUM(V42:V46) -> -1438410.304 | W41: =W6*AK32 -> 569192.4271 | X41: =X6*AK33 -> 484737.9282 | Y41: =Y6*AK34 -> 439446.737 | Z41: =Z6*AK35 -> 0 | AA41: =AA6*AK36 -> 0 | AB41: 0 | AI41: =AK41-AK41 -> 0 | AJ41: 0 | AK41: =-AK39-SUM(AK42:AK46) -> -2831243.757 | AL41: =W6*AI32 -> 1120348.15 | AM41: =X6*AI33 -> 954099.4544 | AN41: =Y6*AI34 -> 864975.9172 | AO41: =Z6*AI35 -> 0 | AP41: =AA6*AI36 -> 0 | AQ41: 0 | AU41: 0
F42: 1 | H42: 1 | I42: -28320.52679 | J42: 100.0306555 | K42: 200.0277899 | L42: 266.7119031 | M42: 6.596959834 | N42: 203.3441736 | O42: 1 | T42: =T7*$AK32 -> 3415154.563 | U42: 1 | V42: =V7*$AK32 -> -2845962.136 | W42: 569192.4271 | X42: 569192.4271 | Y42: 569192.4271 | Z42: 569192.4271 | AA42: 569192.4271 | AB42: 1 | AI42: =T7*$AI32 -> 6722088.899 | AJ42: 1 | AK42: =V7*$AI32 -> -5601740.749 | AL42: 1120348.15 | AM42: 1120348.15 | AN42: 1120348.15 | AO42: 1120348.15 | AP42: 1120348.15 | AQ42: 1 | AT42: =(AK72+AK104)/V7 -> 1120343.5 | AU42: 1
F43: 2 | H43: 2 | I43: -24299.43314 | J43: 83.35950733 | K43: 100.028304 | L43: 233.3736635 | M43: 9.940710939 | N43: 202.8520811 | O43: 2 | T43: =T8*$AK33 -> 2908427.569 | U43: 2 | V43: -2423689.641 | W43: 484737.9282 | X43: 484737.9282 | Y43: 484737.9282 | Z43: 484737.9282 | AA43: 484737.9282 | AB43: 2 | AI43: =T8*$AI33 -> 5724596.727 | AJ43: 2 | AK43: -4770497.272 | AL43: 954099.4544 | AM43: 954099.4544 | AN43: 954099.4544 | AO43: 954099.4544 | AP43: 954099.4544 | AQ43: 2 | AT43: =(AK73+AK105)/V8 -> 954097.4437 | AU43: 2
F44: 3 | H44: 3 | I44: -22247.64985 | J44: 66.69309249 | K44: 150.0197744 | L44: 166.6977262 | M44: 8.61269005 | N44: 202.5730429 | O44: 3 | T44: =T9*$AK34 -> 2636680.422 | U44: 3 | V44: -2197233.685 | W44: 439446.737 | X44: 439446.737 | Y44: 439446.737 | Z44: 439446.737 | AA44: 439446.737 | AB44: 3 | AI44: =T9*$AI34 -> 5189855.503 | AJ44: 3 | AK44: -4324879.586 | AL44: 864975.9172 | AM44: 864975.9172 | AN44: 864975.9172 | AO44: 864975.9172 | AP44: 864975.9172 | AQ44: 3 | AT44: =(AK74+AK106)/V9 -> 864975.4499 | AU44: 3
D45: System State | F45: L | G45: -98855.91594 | H45: L | I45: -20917.62525 | J45: 66.68445813 | K45: 200.0440101 | L45: 300.0682809 | M45: 266.8496392 | N45: 67.02473247 | O45: L | T45: =T10*$AK35 -> 106147.3876 | U45: L | V45: -141529.8502 | W45: 35382.46255 | X45: 35382.46255 | Y45: 35382.46255 | Z45: -35382.46255 | AA45: 35382.46255 | AB45: L | AI45: =T10*$AI35 -> 208921.1724 | AJ45: L | AK45: -278561.5632 | AL45: 69640.39079 | AM45: 69640.39079 | AN45: 69640.39079 | AO45: -69640.39079 | AP45: 69640.39079 | AQ45: L | AT45: =(AK75+AK107)/V10 -> 69639.14512 | AU45: L
D46: at time = t > | F46: N | G46: -9237.896523 | H46: N | I46: -7398.920844 | J46: 16.60600109 | K46: 99.83664083 | L46: 99.74686669 | M46: 0 | N46: 2246.20597 | O46: N | T46: =T11*$AK36 -> 39168.6521 | U46: N | V46: -58752.97816 | W46: 19584.32605 | X46: 19584.32605 | Y46: 19584.32605 | Z46: 0 | AA46: -19584.32605 | AB46: N | AI46: =T11*$AI36 -> 77078.74662 | AJ46: N | AK46: -115618.1199 | AL46: 38539.37331 | AM46: 38539.37331 | AN46: 38539.37331 | AO46: 0 | AP46: -38539.37331 | AQ46: N | AT46: =(AK76+AK108)/V11 -> 38546.40902 | AU46: N
U48: ───
G49: 0 | I49: 0 | J49: 0 | K49: 0 | L49: 0 | M49: 0 | N49: 0 | T49: =SUM(T42:T46) -> 9105578.594 | U49: Q | V49: =SUM(V42:V46) -> -7667168.29 | W49: =SUM(W42:W46) -> 1548343.881 | X49: =SUM(X42:X46) -> 1548343.881 | Y49: =SUM(Y42:Y46) -> 1548343.881 | Z49: =SUM(Z42:Z44) -> 1493377.092 | AA49: =SUM(AA42:AA45) -> 1528759.555
H50: C | I50: 0 | J50: 1 | K50: 2 | L50: 3 | M50: L | N50: N | V50: 0 | W50: 1 | X50: 2 | Y50: 3 | Z50: L | AA50: N
F51: 0 | H51: 0 | I51: 103184.1559 | J51: -333.4122972 | K51: -749.9863647 | L51: -1066.63296 | M51: -292 | N51: -2922 | O51: 0 | AH51: Intersection of
F52: 1 | H52: 1 | I52: -28320.4689 | J52: 100.0349139 | K52: 200.0265792 | L52: 266.7113096 | M52: 6.596951928 | N52: 203.3384643 | O52: 1 | AH52: S/D Schedules > | AI52: =AI39/AI19 -> 1.000000289 | AK52: =AK39/AK19 -> 1.968303941 | AL52: =AL39/AL19 -> 1839.568802 | AM52: 210.4442398 | AN52: 45.15955821 | AO52: 1101.187684 | AP52: 19.681308 | AU52: 1/(N+1)
F53: 2 | H53: 2 | I53: -24299.47161 | J53: 83.34502645 | K53: 100.0313734 | L53: 233.3739191 | M53: 9.940735417 | N53: 202.8489653 | O53: 2 | T53: =-T103 -> 0 | U53: Yt | V53: =-V103 -> -309552.4676 | W53: =AC22 -> 99.99706837 | X53: =AC23 -> 749.9739649 | Y53: =AC24 -> 3199.89015 | Z53: =AO6 -> 876 | AA53: =AP6 -> 8766 | AC53: < Output | AJ53: c Hb/m | AK53: 0 | AL53: 1 | AM53: 2 | AN53: 3 | AO53: L | AP53: N | AR53: p | AT53: (pZPU)
F54: 3 | H54: 3 | I54: -22247.60986 | J54: 66.6959292 | K54: 150.0202133 | L54: 166.697299 | M54: 8.612685217 | N54: 202.5687061 | O54: 3 | V54: 0 | W54: 1 | X54: 2 | Y54: 3 | Z54: L | AA54: N | AH54: Marginal Costs of Production > | AI54: 1 | AJ54: 0 | AK54: =AK41/AK21 -> 1.968311182 | AL54: 1839.576437 | AM54: 210.4446833 | AN54: 45.15958261 | AQ54: 0 | AU54: 0
F55: L | G55: -98858.77115 | H55: L | I55: -20917.6728 | J55: 66.68331762 | K55: 200.0441037 | L55: 300.0682698 | M55: 266.8496274 | N55: 67.02443689 | O55: L | AI55: =AI42/AI22 -> 1.000002659 | AJ55: 1 | AK55: 1.968308346 | AL55: 1839.559951 | AM55: 210.4452053 | AN55: 45.15978441 | AO55: =AO42/AO22 -> 1101.191123 | AP55: 19.68134604 | AQ55: 1 | AR55: =AL52 -> 1839.568802 | AT55: =(AR55*AR7*AR72)^AC7 -> 1120345.103 | AU55: 1
F56: N | G56: -9245.339114 | H56: N | I56: -7398.932711 | J56: 16.61043128 | K56: 99.83615989 | L56: 99.74677175 | M56: 0 | N56: 2246.219427 | O56: N | T56: =T53+T16 -> 0 | U56: S | V56: =-GPE!F14 -> -309552.4676 | W56: =W53+W16 -> 99.99720226 | X56: =X53+X16 -> 749.9981137 | Y56: 3199.990433 | Z56: =Z53+Z16+AC25 -> 75.45354202 | AA56: =AA53+AA16+AC26 -> 2027.817477 | AC56: < Supply | AH56: Values of > | AI56: 1.000000963 | AJ56: 2 | AK56: 1.96830396 | AL56: 1839.561595 | AM56: 210.4445568 | AN56: 45.15968442 | AO56: 1101.188685 | AP56: 19.68130247 | AQ56: 2 | AR56: =AM52 -> 210.4442398 | AT56: =(AR56*AR8*AR73)^AC8 -> 954098.5886 | AU56: 2
V57: 0 | W57: 1 | X57: 2 | Y57: 3 | Z57: L | AA57: N | AH57: Marginal Product | AI57: 0.9999987087 | AJ57: 3 | AK57: 1.968301195 | AL57: 1839.549946 | AM57: 210.4443942 | AN57: 45.15962183 | AO57: 1101.187158 | AP57: 19.68127519 | AQ57: 3 | AR57: =AN52 -> 45.15955821 | AT57: =(AR57*AR9*AR74)^AC9 -> 864976.9819 | AU57: 3
AI58: 1.000013792 | AJ58: L | AK58: 1.968283966 | AL58: 1839.593212 | AM58: 210.447981 | AN58: 45.16040134 | AO58: 1101.207381 | AP58: 19.68161491 | AQ58: L | AR58: =-AO52 -> -1101.187684 | AT58: =(AR58*AR10*AR75)^AC10 -> 69639.21435 | AU58: L
G59: 0 | M59: -863.7864907 | N59: -8696.711347 | AI59: 0.9998134519 | AJ59: N | AK59: 1.967898367 | AL59: 1839.167397 | AM59: 210.4064751 | AN59: 45.15137306 | AP59: =AP46/AP26 -> 19.67771566 | AQ59: N | AR59: =-AP52 -> -19.681308 | AT59: =(AR59*AR11*AR76)^AC11 -> 38546.72556 | AU59: N
M60: =Utility!J41 -> -863.2450447 | N60: =Utility!K42 -> -8725.940102
G61: 0 | H61: 0
H62: 1 | T62: =1/GPE!F26 -> 0.5 | V62: =1 -> 1 | W62: =AL62/$AK62 -> 934.5199679 | X62: =AM62/$AK62 -> 106.9079388 | Y62: =AN62/$AK62 -> 22.94155715 | Z62: =AO62/$AK62 -> 559.2964977 | AA62: =AP62/$AK62 -> 10 | AI62: 1 | AK62: =GPE!F26 -> 2 | AL62: =GPE!G26 -> 1869.039936 | AM62: =GPE!H26 -> 213.8158777 | AN62: =GPE!I26 -> 45.8831143 | AO62: =GPE!J26 -> 1118.592995 | AP62: =GPE!K26 -> 20
H63: 2 | S63: Currency > | T63: =T39/AI39 -> 0.508051764 | U63: Y | V63: =V49/(AK16+V56) -> 1.000000011 | W63: 934.5968799 | X63: 106.9165708 | Y63: 22.94340977 | Z63: 559.4597534 | AA63: 9.999095463 | AC63: <Values | AH63: Prices > | AI63: =T63/$T63 -> 1 | AJ63: P | AK63: =V63/$T63 -> 1.968303393 | AL63: 1839.57019 | AM63: 210.4442469 | AN63: 45.15959081 | AO63: 1101.186519 | AP63: 19.68125331
H64: 3 | R64: Value | T64: G/$ | V64: 0 | W64: 1 | X64: 2 | Y64: 3 | Z64: L | AA64: N | AC64: G/unit | AG64: $/unit | AK64: 0 | AL64: 1 | AM64: 2 | AN64: 3 | AO64: L | AP64: N
E65: Maturing | G65: =3*G55/Term -> -41733.36882 | H65: L
E66: Principal > | G66: =3*G56/Term -> -3902.932867 | H66: N
T69: =T71-V69 -> -9105575.959 | V69: =-SUM(W69:AA69) -> 9105575.959 | W69: =W$63*AL4 -> -2117536.677 | X69: =X$63*AM4 -> -2033072.205 | Y69: =Y$63*AN4 -> -1987794.2 | Z69: =Z$63*AO4 -> -1457996.839 | AA69: =AA$63*AP4 -> -1509176.038 | AI69: =AI71-AK69 -> -17922535.86 | AK69: =-SUM(AL69:AP69) -> 17922535.86 | AL69: =AL$63*AL4 -> -4167954.58 | AM69: =AM$63*AM4 -> -4001702.875 | AN69: =AN$63*AN4 -> -3912582.027 | AO69: =AO$63*AO4 -> -2869780.095 | AP69: =AP$63*AP4 -> -2970516.284
T70: ¡ | U70: YU | V70: 0 | W70: 1 | X70: 2 | Y70: 3 | Z70: L | AA70: N | AI70: u | AJ70: PU | AK70: 0 | AL70: 1 | AM70: 2 | AN70: 3 | AO70: L | AP70: N | AR70: PU | AT70: u/(h - w)
T71: =V71-V71 -> 0 | U71: 0 | V71: =-V69-SUM(V72:V76) -> -1747960.221 | W71: =W$63*AL6 -> 662649.869 | X71: 564915.5502 | Y71: 512869.0113 | Z71: 490086.744 | AA71: 87652.07083 | AB71: 0 | AI71: =AK71-AK71 -> 0 | AJ71: 0 | AK71: =-AK69-SUM(AK72:AK76) -> -3440515.997 | AL71: =AL$63*AL6 -> 1304295.971 | AM71: 1111925.182 | AN71: 1009481.804 | AO71: 964639.3906 | AP71: 172525.8665 | AQ71: 0 | AU71: 0
T72: =W71-V72 -> 3423655.372 | U72: 1 | V72: =-SUM(W72:AA72) -> -2761005.503 | W72: 541152.2746 | X72: 547805.9798 | Y72: 550834.5727 | Z72: 558120.2748 | AA72: 563092.4015 | AB72: 1 | AI72: =AL71-AK72 -> 6738792.413 | AJ72: 1 | AK72: =-SUM(AL72:AP72) -> -5434496.442 | AL72: 1065151.847 | AM72: 1078248.357 | AN72: 1084209.547 | AO72: 1098550.019 | AP72: 1108336.672 | AQ72: 1 | AR72: =AL72*AM72*AN72*AO72*AP72 -> 1.516125303e+30 | AT72: =AR55*AR22 -> 1120343.5 | AU72: 1
T73: =X71-V73 -> 2915676.072 | U73: 2 | V73: =-SUM(W73:AA73) -> -2350760.522 | W73: 461363.9555 | X73: 474036.465 | Y73: 468667.7408 | Z73: 468046.6727 | AA73: 478645.6879 | AB73: 2 | AC73: Interaction | AH73: Interaction | AI73: =AM71-AK73 -> 5738935.044 | AJ73: 2 | AK73: =-SUM(AL73:AP73) -> -4627009.861 | AL73: 908104.2292 | AM73: 933047.5724 | AN73: 922480.2944 | AO73: 921257.844 | AP73: 942119.9214 | AQ73: 2 | AR73: =AL73*AM73*AN73*AO73*AP73 -> 6.783970787e+29 | AT73: =AR56*AR23 -> 954097.4437 | AU73: 2
T74: =Y71-V74 -> 2643391.194 | U74: 3 | V74: =-SUM(W74:AA74) -> -2130522.183 | W74: 420758.8422 | X74: 423412.6093 | Y74: 427978.3951 | Z74: 424996.9248 | AA74: 433375.4116 | AB74: 3 | AC74: < of Utility | AH74: of Utility > | AI74: =AN71-AK74 -> 5202995.801 | AJ74: 3 | AK74: =-SUM(AL74:AP74) -> -4193513.996 | AL74: 828181.0478 | AM74: 833404.4666 | AN74: 842391.3181 | AO74: 836522.88 | AP74: 853014.2838 | AQ74: 3 | AR74: =AL74*AM74*AN74*AO74*AP74 -> 4.14886326e+29 | AT74: =AR57*AR24 -> 864975.4499 | AU74: 3
T75: =Z71+Z75-V75 -> 85605.17951 | U75: L | V75: =-SUM(W75:Y75)-AA75 -> -78772.21258 | W75: 16683.70563 | X75: 13992.27392 | Y75: 14726.51971 | Z75: -483253.7771 | AA75: 33369.71333 | AB75: L | AC75: with Values | AH75: with Prices | AI75: =AO71+AO75-AK75 -> 168496.9635 | AJ75: L | AK75: =-SUM(AL75:AN75)-AP75 -> -155047.6116 | AL75: 32838.59404 | AM75: 27541.03994 | AN75: 28986.25839 | AO75: -951190.0388 | AP75: 65681.71925 | AQ75: L | AR75: =AL75*AM75*AN75*AP75 -> 1.721874765e+18 | AT75: =AR58*AR25 -> 69639.14512 | AU75: L
T76: =AA71+AA76-V76 -> 37248.14079 | U76: N | V76: =-SUM(W76:Z76) -> -36555.31694 | W76: =W$63*AL11 -> 14928.02968 | X76: =X$63*AM11 -> 8909.326442 | Y76: =Y$63*AN11 -> 12717.96082 | AA76: =AA$63*AP11 -> -86959.24697 | AB76: N | AI76: =AP71+AP76-AK76 -> 73315.64111 | AJ76: N | AK76: =-SUM(AL76:AN76) -> -71951.95358 | AL76: 29382.89114 | AM76: 17536.25728 | AN76: 25032.80516 | AO76: 0 | AP76: -171162.179 | AQ76: N | AR76: =AL76*AM76*AN76 -> 1.289855185e+13 | AT76: =AR59*AR26 -> 38546.40902 | AU76: N
E77: - i | G77: Domestic
E78: =-V0-I81/I78 -> 0.09999946146 | F78: < | G78: Interest | I78: =-SUM(I22:I24) -> 224602.8295 | J78: < Asset Valuations, a | AK78: - PU
E79: =GPE!D26 -> 0.1 | G79: Rate | I79: 0
E81: Supply Valuations, YS | H81: > | I81: =-SUM(J81:N81) -> -247062.9915 | J81: =W63*W56 -> 93457.07323 | K81: =X63*X56 -> 80187.22646 | L81: 73418.69178 | T81: =AI81/AI$63-AI69 -> 27.24707563 | V81: =AK81/AK$63-V69 -> -13.94313077 | W81: =AL81/AL$63-AL4 -> 0.004964636554 | X81: =AM81/AM$63-AM4 -> 0.01655548497 | Y81: =AN81/AN$63-AN4 -> 0.1025102803 | Z81: =AO81/AO$63-AO4 -> 0.002584617919 | AA81: =AP81/AP$63-AP4 -> 0.3635339082 | AI81: =AI83-AK81 -> -17922508.61 | AK81: =-SUM(AL81:AP81) -> 17922508.61 | AL81: =-SUM(AL83:AL88) -> -4167945.448 | AM81: =-SUM(AM83:AM88) -> -4001699.391 | AN81: =-SUM(AN83:AN88) -> -3912577.398 | AO81: =-SUM(AO83:AO88) -> -2869777.248 | AP81: =-SUM(AP83:AP88) -> -2970509.13
I82: 0 | J82: 1 | K82: 2 | L82: 3 | M82: L | N82: N | T82: -f | U82: Q | V82: 0 | W82: 1 | X82: 2 | Y82: 3 | Z82: L | AA82: N | AI82: hz | AJ82: Hz | AK82: 0 | AL82: 1 | AM82: 2 | AN82: 3 | AO82: L | AP82: N
T83: 0 | U83: 0 | V83: =AK83/AK$63-V71 -> 309548.415 | W83: =AL83/AL$63-AL6 -> -99.99752795 | X83: -749.9741184 | Y83: -3199.903976 | Z83: -876 | AA83: -8766 | AB83: 0 | AI83: =AK83-AK83 -> 0 | AJ83: 0 | AK83: =-AK81-SUM(AK84:AK88) -> -2831230.839 | AL83: =W6*$AR32 -> 1120343.5 | AM83: =X6*$AR33 -> 954097.4437 | AN83: =Y6*$AR34 -> 864975.4499 | AO83: =Z6*$AR35 -> 0 | AP83: =AA6*$AR36 -> 0 | AQ83: 0
T84: -16731.4134 | U84: 1 | V84: -84956.92221 | W84: 30.00247205 | X84: 200.029906 | Y84: 800.1390768 | Z84: 19.7909081 | AA84: 610.0641698 | AB84: 1 | AI84: =T7*$AR32 -> 6722061 | AJ84: 1 | AK84: =V7*$AR32 -> -5601717.5 | AL84: 1120343.5 | AM84: 1120343.5 | AN84: 1120343.5 | AO84: 1120343.5 | AP84: 1120343.5 | AQ84: 1
T85: -14350.38152 | U85: 2 | V85: -72893.89765 | W85: 25.00215251 | X85: 100.0258816 | Y85: 700.1203655 | Z85: 29.82201393 | AA85: 608.575182 | AB85: 2 | AC85: Optimal | AI85: =T8*$AR33 -> 5724584.662 | AJ85: 2 | AK85: -4770487.218 | AL85: 954097.4437 | AM85: 954097.4437 | AN85: 954097.4437 | AO85: 954097.4437 | AP85: 954097.4437 | AQ85: 2
I86: NPV | J86: 1 | T86: -13143.10098 | U86: 3 | V86: -66739.30835 | W86: 20.00162989 | X86: 150.0206531 | Y86: 500.0960235 | Z86: 25.83810227 | AA86: 607.744126 | AB86: 3 | AC86: < Rates of | AI86: =T9*$AR34 -> 5189852.7 | AJ86: 3 | AK86: -4324877.25 | AL86: 864975.4499 | AM86: 864975.4499 | AN86: 864975.4499 | AO86: 864975.4499 | AP86: 864975.4499 | AQ86: 3
E87: Investment | G87: =LN(1-Iota)*(1-Iota)^Term+Iota*Kappa/Gamma -> 0.3239214951 | I87: =1/(1+Iota*Term*Kappa/Gamma) -> 0.5079791807 | J87: 1+iTk/g | T87: 40420.47189 | U87: L | V87: -62748.94793 | W87: 20.00497251 | X87: 200.0439822 | Y87: 900.2049397 | Z87: 800.5463911 | AA87: 201.0759072 | AB87: L | AC87: Change | AI87: =T10*$AR35 -> 208917.4353 | AJ87: L | AK87: -278556.5805 | AL87: 69639.14512 | AM87: 69639.14512 | AN87: 69639.14512 | AO87: -69639.14512 | AP87: 69639.14512 | AQ87: L
E88: Term | I88: =IState!D11 -> 0.5131581182 | T88: 3777.176928 | U88: N | V88: -22195.3957 | W88: 4.981336361 | X88: 99.83714002 | Y88: 299.2410606 | Z88: 0 | AA88: 6738.177081 | AB88: N | AI88: =T11*$AR36 -> 77092.81804 | AJ88: N | AK88: -115639.2271 | AL88: 38546.40902 | AM88: 38546.40902 | AN88: 38546.40902 | AO88: 0 | AP88: -38546.40902 | AQ88: N
E89: Calculation | G89: =Term-(1/I89-1/NPV)/G87 -> 7.106459864 | I89: =(1-Iota/V0)^(-Term*V0) -> 0.5079795754 | J89: 1
J90: (1 - i)T
T91: =SUM(T84:T88) -> -27.24707563 | U91: D | V91: =SUM(V84:V88) -> -309534.4718 | W91: =SUM(W84:W88) -> 99.99256331 | X91: =SUM(X84:X88) -> 749.9575629 | Y91: =SUM(Y84:Y88) -> 3199.801466 | Z91: =SUM(Z84:Z86) -> 75.4510243 | AA91: =SUM(AA84:AA87) -> 2027.459385 | AC91: < Demand | AK91: =-SUM(AL91:AP91) -> 0
V92: 0 | W92: 1 | X92: 2 | Y92: 3 | Z92: L | AA92: N | AJ92: FI | AK92: 0 | AL92: 1 | AM92: 2 | AN92: 3 | AO92: L | AP92: N
AI93: =-SUM(AI94:AI98) -> 0 | AJ93: 0 | AK93: =-AK91-SUM(AK94:AK98) -> 0 | AQ93: 0
G94: T | AC94: Demand | AH94: Financial | AI94: =AL93-AK94 -> -1.876708226 | AJ94: 1 | AK94: =-SUM(AL94:AP94) -> 1.876708226 | AL94: 0 | AM94: =(AI56-AI55)*(V0-Iota)*(E22+E23) -> -0.5794466602 | AN94: =(AI57-AI55)*(V0-Iota)*(E22+E24) -> -1.297261566 | AQ94: 1
G95: 7.106455143 | U95: F | V95: =S0/V91 -> 1.000058138 | W95: =IF(W91>W56,W56/W91,1) -> 1 | X95: =IF(X91>X56,X56/X91,1) -> 1 | Y95: =IF(Y91>Y56,Y56/Y91,1) -> 1 | Z95: =IF(Z91>Z56,Z56/Z91,1) -> 1 | AA95: =IF(AA91>AA56,AA56/AA91,1) -> 1 | AC95: < Factors | AH95: Intermediation > | AI95: =AM93-AK95 -> -0.1019800149 | AJ95: 2 | AK95: =-SUM(AL95:AP95) -> 0.1019800149 | AL95: =-AM94 -> 0.5794466602 | AM95: 0 | AN95: =(AI57-AI56)*(V0-Iota)*(E23+E24) -> -0.6814266751 | AQ95: 2
G96: =IState!F11 -> 7 | V96: 0 | W96: 1 | X96: 2 | Y96: 3 | Z96: L | AA96: N | AI96: =AN93-AK96 -> 1.978688241 | AJ96: 3 | AK96: =-SUM(AL96:AP96) -> -1.978688241 | AL96: =-AN94 -> 1.297261566 | AM96: =-AN95 -> 0.6814266751 | AN96: 0 | AQ96: 3
AI97: 0 | AJ97: L | AK97: =-SUM(AL97:AP97) -> 0 | AQ97: L
AI98: 0 | AJ98: N | AK98: =-SUM(AL98:AP98) -> 0 | AQ98: N
AC100: imports ( - ) | AH100: Trade | AS100: Monetary
E101: 0 | G101: 0 | I101: =I29+DT*(V101-I$11*I29*3) -> 0 | J101: 0 | K101: 0 | L101: 0 | M101: 0 | N101: 0 | T101: =AI91+AI101 -> 0 | V101: =-W63*W101-X63*X101-Y63*Y101-Z63*Z101-AA63*AA101 -> 0 | W101: =0 -> 0 | X101: =0 -> 0 | Y101: =0 -> 0 | Z101: =0 -> 0 | AA101: =0 -> 0 | AC101: < eXports ( + ) | AH101: Balance > | AI101: =AI103-AK101 -> 0 | AK101: =-SUM(AL101:AP101) -> 0 | AL101: =AL$63*W101 -> 0 | AM101: =AM$63*X101 -> 0 | AN101: =AN$63*Y101 -> 0 | AO101: =AO$63*Z101 -> 0 | AP101: =AP$63*AA101 -> 0 | AS101: < Transactions
H102: A | I102: 0 | J102: 1 | K102: 2 | L102: 3 | M102: L | N102: N | T102: r | U102: R | V102: 0 | W102: 1 | X102: 2 | Y102: 3 | Z102: L | AA102: N | AI102: - NCF | AJ102: PR | AK102: 0 | AL102: 1 | AM102: 2 | AN102: 3 | AO102: L | AP102: N
D103: 0 | E103: 0 | F103: 0 | G103: 0 | H103: 0 | I103: =I31+DT*(V103-I$11*I31*3) -> 103184.1559 | J103: -333.3241715 | K103: -749.9766654 | L103: -1066.630869 | M103: -292 | N103: -2922 | O103: 0 | T103: 0 | U103: 0 | V103: =-V101-SUM(V104:V108) -> 309552.4676 | W103: =-W53 -> -99.99706837 | X103: =-X53 -> -749.9739649 | Y103: =-Y53 -> -3199.89015 | Z103: =-Z53 -> -876 | AA103: =-AA53 -> -8766 | AB103: 0 | AC103: < Output ( - ) | AI103: =AK103-AK103 -> 0 | AJ103: 0 | AK103: =-SUM(AL103:AP103) -> 609257.9106 | AL103: =-AL101-SUM(AL104:AL108) -> -183943.3387 | AM103: =-AM101-SUM(AM104:AM108) -> -157824.2545 | AN103: =-AN101-SUM(AN104:AN108) -> -144501.7249 | AO103: =-AO101-SUM(AO104:AO108) -> -83085.6508 | AP103: =-AP101-SUM(AP104:AP108) -> -39902.94174 | AQ103: 0
D104: 1 | E104: =K_1+DT*(T104-T22) -> 167214.7497 | F104: 1 | H104: 1 | I104: -28320.57834 | J104: 100.0182965 | K104: 200.0289108 | L104: 266.7124919 | M104: 6.596965655 | N104: 203.3497464 | O104: 1 | S104: Cost of Sales | T104: -16724.15731 | U104: 1 | V104: =V$95*V84 -> -84961.86146 | W104: =W$95*W84 -> 30.00247205 | X104: 200.029906 | Y104: 800.1390768 | Z104: 19.7909081 | AA104: 610.0641698 | AB104: 1 | AH104: Cost of Sales | AI104: =AL103-AK104 -> -16722.2806 | AJ104: 1 | AK104: -167221.0581 | AL104: =AL$63*W104 -> 55191.6532 | AM104: 42095.14292 | AN104: 36133.9533 | AO104: 21793.48119 | AP104: 12006.82746 | AQ104: 1
D105: 2 | E105: =K_2+DT*(T105-T23) -> 143439.0493 | F105: 2 | H105: 2 | I105: -24299.40173 | J105: 83.35211835 | K105: 100.0265954 | L105: 233.3735123 | M105: 9.940689132 | N105: 202.8553296 | O105: 2 | S105: Minus Sales > | T105: -14346.99949 | U105: 2 | V105: =V$95*V85 -> -72898.13557 | W105: 25.00215251 | X105: 100.0258816 | Y105: 700.1203655 | Z105: 29.82201393 | AA105: 608.575182 | AB105: 2 | AH105: Minus Sales > | AI105: =AM103-AK105 -> -14346.89751 | AJ105: 2 | AK105: -143477.357 | AL105: 45993.21444 | AM105: 21049.87132 | AN105: 31617.14923 | AO105: 32839.59971 | AP105: 11977.52232 | AQ105: 2
D106: 3 | E106: =K_3+DT*(T106-T24) -> 131336.6384 | F106: 3 | H106: 3 | I106: -22247.69103 | J106: 66.68153394 | K106: 150.0200076 | L106: 166.6982024 | M106: 8.61269543 | N106: 202.5773951 | O106: 3 | T106: -13136.49297 | U106: 3 | V106: =V$95*V86 -> -66743.18845 | W106: 20.00162989 | X106: 150.0206531 | Y106: 500.0960235 | Z106: 25.83810227 | AA106: 607.744126 | AB106: 3 | AC106: < Rates of | AI106: =AN103-AK106 -> -13138.47166 | AJ106: 3 | AK106: -131363.2532 | AL106: 36794.40209 | AM106: 31570.98337 | AN106: 22584.13179 | AO106: 28452.5699 | AP106: 11961.16609 | AQ106: 3
D107: L | F107: L | G107: =G35+DT*(G65-3*G35/Term+T107-T25) -> -98854.49647 | H107: L | I107: -20917.57684 | J107: 66.68398094 | K107: 200.0439755 | L107: 300.0682961 | M107: 266.8496498 | N107: 67.0250299 | O107: L | S107: Consumption > | T107: 40423.31804 | U107: L | V107: =V$95*V87 -> -62752.59604 | W107: =W$95*W87 -> 20.00497251 | X107: 200.0439822 | Y107: 900.2049397 | Z107: =-Z101-SUM(Z103:Z106)-Z108 -> 800.5489757 | AA107: =AA$95*AA87 -> 201.0759072 | AB107: L | AC107: Change | AI107: =AO103-AK107 -> 40423.31804 | AJ107: L | AK107: -123508.9688 | AL107: =AL$63*W107 -> 36800.55107 | AM107: 42098.10517 | AN107: 40652.88673 | AO107: 0 | AP107: =AP$63*AA107 -> 3957.425865 | AQ107: L
D108: N | F108: N | G108: =G36+DT*(G66-3*G36/Term+T108-T26) -> -9231.979369 | H108: N | I108: -7398.907934 | J108: 16.60456714 | K108: 99.8369508 | L108: 99.74695113 | M108: 0 | N108: 2246.192499 | O108: N | S108: Minus Wages | T108: 3784.331731 | U108: N | V108: =V$95*V88 -> -22196.6861 | W108: 4.981336361 | X108: 99.83714002 | Y108: 299.2410606 | Z108: =Z$95*Z88 -> 0 | AA108: =-AA101-SUM(AA103:AA107) -> 6738.540615 | AB108: N | AI108: =AP103-AK108 -> 3784.331731 | AJ108: N | AK108: -43687.27347 | AL108: 9163.517875 | AM108: 21010.15174 | AN108: 13513.60385 | AO108: =AO$63*Z108 -> 0 | AP108: 0 | AQ108: N
G111: 0 | I111: =I39+DT*I$11*3*(I29-I39) -> 0 | J111: 0 | K111: 0 | L111: 0 | M111: 0 | N111: 0 | T111: =GPE!D12 -> 0 | V111: =GPE!F12 -> 0 | W111: =GPE!G12 -> 0 | X111: =GPE!H12 -> 0 | Y111: =GPE!I12 -> 0 | Z111: =GPE!J12 -> 0 | AA111: =GPE!K12 -> 0
H112: B | I112: 0 | J112: 1 | K112: 2 | L112: 3 | M112: L | N112: N | T112: r | U112: R | V112: 0 | W112: 1 | X112: 2 | Y112: 3 | Z112: L | AA112: N
F113: 0 | H113: 0 | I113: =I41+DT*I$11*3*(I31-I41) -> 103184.1559 | J113: -333.3487204 | K113: -749.9807258 | L113: -1066.631831 | M113: -292 | N113: -2922 | O113: 0 | T113: =GPE!D14 -> 0 | U113: 0 | V113: =GPE!F14 -> 309552.4676 | W113: =GPE!G14 -> -100 | X113: =GPE!H14 -> -750 | Y113: =GPE!I14 -> -3200 | Z113: =GPE!J14 -> -876 | AA113: =GPE!K14 -> -8766
F114: 1 | H114: 1 | I114: -28320.5283 | J114: 100.0306185 | K114: 200.027801 | L114: 266.7119203 | M114: 6.596960005 | N114: 203.3443362 | O114: 1 | T114: =GPE!D15 -> -16991.26862 | U114: 1 | V114: =GPE!F15 -> -84956.36248 | W114: =GPE!G15 -> 30 | X114: =GPE!H15 -> 200 | Y114: =GPE!I15 -> 800 | Z114: =GPE!J15 -> 20 | AA114: =GPE!K15 -> 600
F115: 2 | H115: 2 | I115: -24299.43222 | J115: 83.35948526 | K115: 100.028287 | L115: 233.373659 | M115: 9.940710301 | N115: 202.8521757 | O115: 2 | T115: =GPE!D16 -> -14578.35223 | U115: 2 | V115: =GPE!F16 -> -72891.77802 | W115: =GPE!G16 -> 25 | X115: =GPE!H16 -> 100 | Y115: =GPE!I16 -> 700 | Z115: =GPE!J16 -> 30 | AA115: =GPE!K16 -> 600
F116: 3 | H116: 3 | I116: -22247.65105 | J116: 66.6930579 | K116: 150.0197767 | L116: 166.6977401 | M116: 8.612690206 | N116: 202.5731698 | O116: 3 | T116: =GPE!D17 -> -13347.81037 | U116: 3 | V116: =GPE!F17 -> -66739.0777 | W116: =GPE!G17 -> 20 | X116: =GPE!H17 -> 150 | Y116: =GPE!I17 -> 500 | Z116: =GPE!J17 -> 26 | AA116: =GPE!K17 -> 600
D117: System State | F117: L | G117: =G45+DT*3*(G35-G45)/Term -> -98855.90996 | H117: L | I117: -20917.62384 | J117: 66.68445671 | K117: 200.0440098 | L117: 300.0682813 | M117: 266.8496395 | N117: 67.02474114 | O117: L | T117: =GPE!D18 -> 40425.70948 | U117: L | V117: =GPE!F18 -> -62719.38856 | W117: =GPE!G18 -> 20 | X117: =GPE!H18 -> 200 | Y117: =GPE!I18 -> 900 | Z117: =GPE!J18 -> 800 | AA117: =GPE!K18 -> 200
D118: at time = t > | F118: N | G118: =G46+DT*3*(G36-G46)/Term -> -9237.871595 | H118: N | I118: -7398.920468 | J118: 16.60599679 | K118: 99.83664391 | L118: 99.74686916 | M118: 0 | N118: 2246.205577 | O118: N | T118: =GPE!D19 -> 4491.721738 | U118: N | V118: =GPE!F19 -> -22245.86087 | W118: =GPE!G19 -> 5 | X118: =GPE!H19 -> 100 | Y118: =GPE!I19 -> 300 | Z118: =GPE!J19 -> 0 | AA118: =GPE!K19 -> 6766
G121: 0 | I121: =I49+DT*I$11*3*(I39-I49) -> 0 | J121: 0 | K121: 0 | L121: 0 | M121: 0 | N121: 0 | T121: u
H122: C | I122: 0 | J122: 1 | K122: 2 | L122: 3 | M122: L | N122: N | T122: (h/w-1)
F123: 0 | H123: 0 | I123: =I51+DT*I$11*3*(I41-I51) -> 103184.1559 | J123: -333.4121067 | K123: -749.9863087 | L123: -1066.632927 | M123: -292 | N123: -2922 | O123: 0 | T123: =-SUM(T124:T128) -> -0.09112115774 | U123: 0
F124: 1 | H124: 1 | I124: -28320.47064 | J124: 100.0349011 | K124: 200.0265913 | L124: 266.7113274 | M124: 6.596952165 | N124: 203.3386355 | O124: 1 | T124: =AI72/(T7/T32-1) -> -16721.34334 | U124: 1
F125: 2 | H125: 2 | I125: -24299.47046 | J125: 83.34506989 | K125: 100.0313427 | L125: 233.3739115 | M125: 9.940734682 | N125: 202.8490587 | O125: 2 | T125: =AI73/(T8/T33-1) -> -14343.81707 | U125: 2
F126: 3 | H126: 3 | I126: -22247.61106 | J126: 66.69592069 | K126: 150.0202089 | L126: 166.6973118 | M126: 8.612685362 | N126: 202.5688362 | O126: 3 | T126: =AI74/(T9/T34-1) -> -13133.61292 | U126: 3
F127: L | G127: =G55+DT*3*(G45-G55)/Term -> -98858.7591 | H127: L | I127: -20917.67137 | J127: 66.68332104 | K127: 200.0441028 | L127: 300.0682702 | M127: 266.8496278 | N127: 67.02444576 | O127: L | T127: =AI75/(T10/T35-1) -> 40420.63623 | U127: L
F128: N | G128: =G56+DT*3*(G46-G56)/Term -> -9245.307695 | H128: N | I128: -7398.932355 | J128: 16.61041799 | K128: 99.8361647 | L128: 99.74677459 | M128: 0 | N128: 2246.219024 | O128: N | T128: =AI76/(T11/T36-1) -> 3778.22823 | U128: N
T130: ∂ZL/∂t
M131: =M59+DT*T131 -> -863.7864969 | N131: =N59+DT*T132 -> -8696.710971 | T131: =(T127-T25)/AO63*M11 -> -0.0006277137036 | U131: L
T132: =(T128-T26)/AP63*N11 -> 0.03765696681 | U132: N

Sheet Series
B4: BUFFER ->
C5: =TicToc -> 18.00031662 | D5: ='1 DT'!AC23 -> 749.9739649 | E5: ='1 DT'!X56 -> 749.9981137 | F5: ='1 DT'!X91 -> 749.9575629 | G5: =-Iota -> 0.09999946146 | H5: ='1 DT'!T63 -> 0.508051764 | I5: ='1 DT'!AM63 -> 210.4442469 | J5: ='1 DT'!AM54 -> 210.4446833 | K5: ='1 DT'!AM55 -> 210.4452053 | L5: ='1 DT'!AM58 -> 210.447981 | M5: ='1 DT'!AM62 -> 213.8158777 | N5: =-Ull -> 863.7864907 | O5: =-Unn -> 8696.711347 | P5: =-'1 DT'!AC25 -> 800.546458 | Q5: =-'1 DT'!AC26 -> 6738.182523 | R5: ='1 DT'!AI94 -> -1.876708226 | S5: ='1 DT'!AI95 -> -0.1019800149 | T5: ='1 DT'!AI96 -> 1.978688241
A7: BOX: | C7: year | D7: Y2 | E7: S2 | F7: D2 | G7: -i | H7: G/$ | I7: P2 | J7: MC2 | K7: VMP1 | L7: VMPL | M7: P* | N7: -ZL1 | O7: -ZL2 | P7: -YL1 | Q7: -YL2 | R7: Sector 1 | S7: Sector 2 | T7: Sector 3
A8: 0 | C8: 0 | D8: 750 | E8: 825 | F8: 825 | G8: 0.133678084 | H8: 0.3740328892 | I8: 284.352332 | J8: 285.8249687 | K8: 285.8249687 | L8: 285.8249687 | M8: 213.8158777 | N8: 863.2450447 | O8: 8725.940102 | P8: 800 | Q8: 6766 | R8: 364.2240694 | S8: -685.522041 | T8: 321.2979716
A9: =1+A8 -> 1 | C9: 0.6099997163 | D9: 743.3857969 | E9: 796.483009 | F9: 788.1912894 | G9: 0.1249003112 | H9: 0.4024739634 | I9: 263.8510596 | J9: 261.7738928 | K9: 265.6716389 | L9: 265.9356952 | M9: 213.8158777 | N9: 863.347763 | O9: 8725.402915 | P9: 800.1256262 | Q9: 6767.055489 | R9: -4983.019739 | S9: 9032.750238 | T9: -4049.730498
A10: 2 | C10: 1.219999194 | D10: 744.4791956 | E10: 775.2692671 | F10: 765.6709531 | G10: 0.116427453 | H10: 0.4328808238 | I10: 245.5519701 | J10: 243.9396728 | K10: 246.564409 | L10: 246.8287891 | M10: 213.8158777 | N10: 863.4766058 | O10: 8721.975788 | P10: 800.2574028 | Q10: 6764.71479 | R10: -3973.285958 | S10: 6670.222756 | T10: -2696.936798
A11: 3 | C11: 1.829998612 | D11: 746.6345716 | E11: 761.7096475 | F11: 753.2119251 | G11: 0.1098555654 | H11: 0.4596903468 | I11: 231.5662738 | J11: 230.6768154 | K11: 231.969401 | L11: 232.2415057 | M11: 213.8158777 | N11: 863.5734124 | O11: 8716.710408 | P11: 800.3527132 | Q11: 6759.941749 | R11: -2393.547996 | S11: 3665.516702 | T11: -1271.968706
A12: 4 | C12: 2.43999815 | D12: 748.2769013 | E12: 754.3692024 | F12: 747.9380637 | G12: 0.1056266363 | H12: 0.4788889416 | I12: 222.6034695 | J12: 222.219573 | K12: 222.6722238 | L12: 222.9410912 | M12: 213.8158777 | N12: 863.6395803 | O12: 8711.206046 | P12: 800.4142149 | Q12: 6754.47929 | R12: -1148.715379 | S12: 1549.445738 | T12: -400.7303592 | Y12: b2 | Z12: Z2 | AA12: b1-2-3 | AB12: U1-2-3
A13: 5 | C13: 3.049997568 | D13: 749.2258895 | E13: 751.0325996 | F13: 746.7264915 | G13: 0.1032257673 | H13: 0.4906756983 | I13: 217.51155 | J13: 217.4016749 | K13: 217.4375907 | L13: 217.6846359 | M13: 213.8158777 | N13: 863.6831902 | O13: 8706.426034 | P13: 800.4527624 | Q13: 6749.504406 | R13: -382.1295613 | S13: 398.5782018 | T13: -16.44864052 | Y13: ='1 DT'!AI33 -> 954099.4544 | Z13: ='1 DT'!AR8 -> 5283.704347 | AA13: =SUM('1 DT'!AM42:AM46) -> 3047603.285 | AB13: =SUM('1 DT'!AM7:AM11) -> 13731.79707
A14: 6 | C14: 3.659996986 | D14: 749.697968 | E14: 749.8688994 | F14: 747.2882545 | G14: 0.101969107 | H14: 0.4972159358 | I14: 214.8279465 | J14: 214.8426882 | K14: 214.7145459 | L14: 214.9329397 | M14: 213.8158777 | N14: 863.7122105 | O14: 8702.750347 | P14: 800.4775606 | Q14: 6745.539817 | R14: 21.68842359 | S14: -108.37189 | T14: 86.6834664 | Y14: INITIAL | Z14: INITIAL
A15: 7 | C15: 4.270002842 | D15: 749.9067791 | E15: 749.6728138 | F15: 748.3048043 | G15: 0.1013341116 | H15: 0.5006801074 | I15: 213.4520938 | J15: 213.5107602 | K15: 213.3443934 | L15: 213.5311272 | M15: 213.8158777 | N15: 863.7323329 | O15: 8700.183418 | P15: 800.4946543 | Q15: 6742.674687 | R15: 202.3784979 | S15: -268.1072856 | T15: 65.72878765 | X15: Q1 | Y15: s | Z15: d | AA15: S | AB15: D
A16: 8 | C16: 4.880016804 | D16: 749.9861984 | E16: 749.7833366 | F16: 749.1958306 | G16: 0.1009951582 | H16: 0.5025943953 | I16: 212.7030072 | J16: 212.7682487 | K16: 212.6145301 | L16: 212.7657687 | M16: 213.8158777 | N16: 863.7465518 | O16: 8698.544767 | P16: 800.5070103 | Q16: 6740.771935 | R16: 263.8601527 | S16: -274.8731457 | T16: 11.01299301 | X16: 600 | Y16: 206.9681676 | Z16: 216.0536658 | AA16: =$Y$13/($Z$13-X16) -> 203.7061658 | AB16: =$AA$13/($AB$13+X16) -> 212.6462767
A17: 9 | C17: 5.490030766 | D17: 750.0234575 | E17: 749.9298286 | F17: 749.7628705 | G17: 0.1007869692 | H17: 0.5037832316 | I17: 212.2312983 | J17: 212.2898725 | K17: 212.1619935 | L17: 212.2836927 | M17: 213.8158777 | N17: 863.7566891 | O17: 8697.601374 | P17: 800.5161417 | Q17: 6739.614607 | R17: 267.6333016 | S17: -231.6776057 | T17: -35.95569586 | X17: =20+X16 -> 620 | Y17: 207.8557374 | Z17: 215.7525834 | AA17: 204.5797468 | AB17: 212.3499427
A18: 10 | C18: 6.100044727 | D18: 750.0461313 | E18: 750.0274325 | F18: 750.0384734 | G18: 0.1006458134 | H18: 0.5045771435 | I18: 211.9070874 | J18: 211.9567832 | K18: 211.8525242 | L18: 211.949866 | M18: 213.8158777 | N18: 863.7641134 | O18: 8697.123805 | P18: 800.5231118 | Q18: 6738.976958 | R18: 248.4709603 | S18: -185.4052654 | T18: -63.06569491 | X18: 640 | Y18: 208.7509526 | Z18: 215.452339 | AA18: 205.4608526 | AB18: 212.0544334
A19: 11 | C19: 6.710058689 | D19: 750.0569213 | E19: 750.0760731 | F19: 750.1621412 | G19: 0.1005555222 | H19: 0.5050635364 | I19: 211.7036142 | J19: 211.7458218 | K19: 211.6594143 | L19: 211.7349284 | M19: 213.8158777 | N19: 863.7694139 | O19: 8696.929243 | P19: 800.5268974 | Q19: 6738.633542 | R19: 222.6163087 | S19: -151.011744 | T19: -71.60456474 | X19: 660 | Y19: 209.6539124 | Z19: 215.1529291 | AA19: 206.3495809 | AB19: 211.7597455
A20: 12 | C20: 7.320072651 | D20: 750.0629025 | E20: 750.0942748 | F20: 750.1767313 | G20: 0.1004830623 | H20: 0.5054355311 | I20: 211.5434454 | J20: 211.5798541 | K20: 211.5069618 | L20: 211.564716 | M20: 213.8158777 | N20: 863.7728565 | O20: 8696.892756 | P20: 800.5296845 | Q20: 6738.492484 | R20: 194.4303168 | S20: -126.3686108 | T20: -68.06170606 | X20: 680 | Y20: 210.5647177 | Z20: 214.8543502 | AA20: 207.2460311 | AB20: 211.4658755
A21: 13 | C21: 7.930086613 | D21: 750.0639322 | E21: 750.0924949 | F21: 750.1258384 | G21: 0.1004127515 | H21: 0.5057931518 | I21: 211.3884215 | J21: 211.4200872 | K21: 211.3578207 | L21: 211.4019944 | M21: 213.8158777 | N21: 863.7749257 | O21: 8696.918863 | P21: 800.5327977 | Q21: 6738.484036 | R21: 167.6883685 | S21: -107.5273166 | T21: -60.16105185 | X21: 700 | Y21: 211.4834712 | Z21: 214.5565989 | AA21: 208.1503042 | AB21: 211.17282
A22: 14 | C22: 8.540100098 | D22: 750.0568497 | E22: 750.0771908 | F22: 750.0719246 | G22: 0.1003463762 | H22: 0.5061357653 | I22: 211.2425357 | J22: 211.2699139 | K22: 211.2166407 | L22: 211.2518086 | M22: 213.8158777 | N22: 863.776192 | O22: 8696.951808 | P22: 800.5352208 | Q22: 6738.515749 | R22: 143.4191512 | S22: -92.16610099 | T22: -51.25305025 | X22: 720 | Y22: 212.4102773 | Z22: 214.2596716 | AA22: 209.0625031 | AB22: 210.8805756
A23: 15 | C23: 9.150114059 | D23: 750.0478729 | E23: 750.0627615 | F23: 750.038425 | G23: 0.100290247 | H23: 0.5064294285 | I23: 211.1186708 | J23: 211.1422534 | K23: 211.0968006 | L23: 211.1262466 | M23: 213.8158777 | N23: 863.7771811 | O23: 8696.975161 | P23: 800.5365669 | Q23: 6738.530195 | R23: 121.4461747 | S23: -79.1792439 | T23: -42.26693076 | X23: 740 | Y23: 213.3452426 | Z23: 213.9635651 | AA23: 209.9827325 | AB23: 210.589139
A24: 16 | C24: 9.760128021 | D24: 750.039974 | E24: 750.054011 | F24: 750.0133901 | G24: 0.1002430174 | H24: 0.5066797775 | I24: 211.0129366 | J24: 211.0331727 | K24: 210.9947313 | L24: 211.0195904 | M24: 213.8158777 | N24: 863.7780915 | O24: 8696.991221 | P24: 800.5376121 | Q24: 6738.532339 | R24: 101.3880728 | S24: -67.55229247 | T24: -33.83578033 | X24: 760 | Y24: 214.288475 | Z24: 213.6682759 | AA24: 210.9110988 | AB24: 210.2985068
A25: 17 | C25: 10.37014198 | D25: 750.0315697 | E25: 750.0484586 | F25: 749.9945365 | G25: 0.1002031953 | H25: 0.5068932075 | I25: 210.9229425 | J25: 210.9401082 | K25: 210.9080968 | L25: 210.9287669 | M25: 213.8158777 | N25: 863.7789283 | O25: 8696.998767 | P25: 800.5385764 | Q25: 6738.528296 | R25: 83.32952792 | S25: -56.84331048 | T25: -26.48621744 | X25: 780 | Y25: 215.2400849 | Z25: 213.3738006 | AA25: 211.8477104 | AB25: 210.0086757
A26: 18 | C26: 10.98015594 | D26: 750.0228907 | E26: 750.0444875 | F26: 749.9814692 | G26: 0.1001691679 | H26: 0.5070776946 | I26: 210.8454564 | J26: 210.8597945 | K26: 210.8336437 | L26: 210.8508227 | M26: 213.8158777 | N26: 863.7796937 | O26: 8696.996802 | P26: 800.5394428 | Q26: 6738.517078 | R26: 67.29139058 | S26: -46.98947122 | T26: -20.30191935 | X26: 800 | Y26: 216.2001843 | Z26: 213.0801359 | AA26: 212.7926778 | AB26: 209.7196424
A27: 19 | C27: 11.59016991 | D27: 750.0145941 | E27: 750.0411103 | F27: 749.972549 | G27: 0.1001397346 | H27: 0.5072392396 | I27: 210.7778889 | J27: 210.7896739 | K27: 210.7687445 | L27: 210.7831633 | M27: 213.8158777 | N27: 863.780416 | O27: 8696.986224 | P27: 800.5402379 | Q27: 6738.498696 | R27: 53.31036788 | S27: -38.09972156 | T27: -15.21064631 | X27: 820 | Y27: 217.1688872 | Z27: 212.7872784 | AA27: 213.7461131 | AB27: 209.4314036
A28: 20 | C28: 12.20018387 | D28: 750.0070349 | E28: 750.0376661 | F28: 749.9663546 | G28: 0.1001141909 | H28: 0.5073811411 | I28: 210.7187806 | J28: 210.7283144 | K28: 210.7119222 | L28: 210.7241418 | M28: 213.8158777 | N28: 863.7811168 | O28: 8696.968712 | P28: 800.5409904 | Q28: 6738.474415 | R28: 41.35471602 | S28: -30.28866924 | T28: -11.06604678 | X28: 840 | Y28: 218.14631 | Z28: 212.4952248 | AA28: 214.7081308 | AB28: 209.143956
A29: 21 | C29: 12.81019783 | D29: 750.0003665 | E29: 750.0338618 | F29: 749.9619725 | G29: 0.1000920658 | H29: 0.5075055034 | I29: 210.6671865 | J29: 210.6747798 | K29: 210.6622388 | L29: 210.6726636 | M29: 213.8158777 | N29: 863.7818037 | O29: 8696.946014 | P29: 800.5417137 | Q29: 6738.445799 | R29: 31.31814166 | S29: -23.60011571 | T29: -7.718025951 | X29: 860 | Y29: 219.1325708 | Z29: 212.2039718 | AA29: 215.6788473 | AB29: 208.8572964
A30: 22 | C30: 13.42021179 | D30: 749.9946247 | E30: 750.0296735 | F30: 749.9588814 | G30: 0.1000730014 | H30: 0.5076139174 | I30: 210.6223892 | J30: 210.6283428 | K30: 210.6190018 | L30: 210.6279293 | M30: 213.8158777 | N30: 863.7824753 | O30: 8696.91972 | P30: 800.5424106 | Q30: 6738.414317 | R30: 23.04159228 | S30: -18.00137421 | T30: -5.040218072 | X30: 880 | Y30: 220.1277901 | Z30: 211.9135162 | AA30: 216.658381 | AB30: 208.5714215
A31: 23 | C31: 14.03022575 | D31: 749.9897719 | E31: 750.0252124 | F31: 749.9567906 | G31: 0.1000566958 | H31: 0.5077077513 | I31: 210.5837741 | J31: 210.5883662 | K31: 210.581633 | L31: 210.5892908 | M31: 213.8158777 | N31: 863.7831262 | O31: 8696.891198 | P31: 800.5430785 | Q31: 6738.381239 | R31: 16.33650659 | S31: -13.40607444 | T31: -2.930432146 | X31: 900 | Y31: 221.1320904 | Z31: 211.6238545 | AA31: 217.6468527 | AB31: 208.2863281
A32: 24 | C32: 14.64023972 | D32: 749.9857313 | E32: 750.0206308 | F32: 749.9555204 | G32: 0.1000428695 | H32: 0.5077883119 | I32: 210.5507608 | J32: 210.5542397 | K32: 210.5495924 | L32: 210.5561618 | M32: 213.8158777 | N32: 863.7837497 | O32: 8696.861586 | P32: 800.5437129 | Q32: 6738.347621 | R32: 11.00363569 | S32: -9.700006341 | T32: -1.303629353 | X32: 920 | Y32: 222.1455967 | Z32: 211.3349837 | AA32: 218.6443852 | AB32: 208.002013
A33: 25 | C33: 15.25025368 | D33: 749.9824102 | E33: 750.0160709 | F33: 749.954933 | G33: 0.1000312508 | H33: 0.5078569085 | I33: 210.5227741 | J33: 210.5253561 | K33: 210.5223455 | L33: 210.5279766 | M33: 213.8158777 | N33: 863.7843399 | O33: 8696.831801 | P33: 800.5443095 | Q33: 6738.314311 | R33: 6.846480961 | S33: -6.760730988 | T33: -0.08574997326 | X33: 940 | Y33: 223.1684361 | Z33: 211.0469004 | AA33: 219.6511038 | AB33: 207.7184731
A34: 26 | C34: 15.86026764 | D34: 749.9797135 | E34: 750.0116442 | F34: 749.9549043 | G34: 0.1000215737 | H34: 0.5079148569 | I34: 210.4992421 | J34: 210.5011118 | K34: 210.4993587 | L34: 210.5041793 | M34: 213.8158777 | N34: 863.7848922 | O34: 8696.802565 | P34: 800.5448647 | Q34: 6738.281971 | R34: 3.679812408 | S34: -4.469630633 | T34: 0.7898182248 | X34: 960 | Y34: 224.2007381 | Z34: 210.7596014 | AA34: 220.6671358 | AB34: 207.4357052
A35: 27 | C35: 16.4702816 | D35: 749.9775506 | E35: 750.0074288 | F35: 749.9553157 | G35: 0.1000135812 | H35: 0.5079634535 | I35: 210.4796057 | J35: 210.4809185 | K35: 210.4801078 | L35: 210.4842289 | M35: 213.8158777 | N35: 863.7854033 | O35: 8696.774426 | P35: 800.5453763 | Q35: 6738.251095 | R35: 1.334384607 | S35: -2.718005682 | T35: 1.383621075 | X35: 980 | Y35: 225.2426347 | Z35: 210.4730836 | AA35: 221.6926112 | AB35: 207.153706
A36: 28 | C36: 17.08029556 | D36: 749.9758388 | E36: 750.003474 | F36: 749.9560565 | G36: 0.1000070308 | H36: 0.5080039423 | I36: 210.4633324 | J36: 210.4642171 | K36: 210.4640909 | L36: 210.4676097 | M36: 213.8158777 | N36: 863.7858718 | O36: 8696.747778 | P36: 800.5458434 | Q36: 6738.222034 | R36: -0.3409499838 | S36: -1.409377869 | T36: 1.750327853 | X36: 1000 | Y36: 226.2942602 | Z36: 210.1873437 | AA36: 222.7276621 | AB36: 206.8724726
A37: 29 | C37: 17.69030952 | D37: 749.9745037 | E37: 749.9998072 | F37: 749.9570274 | G37: 0.1000016989 | H37: 0.5080374864 | I37: 210.4499268 | J37: 210.4504892 | K37: 210.4508396 | L37: 210.4538414 | M37: 213.8158777 | N37: 863.7862971 | O37: 8696.722889 | P37: 800.5462661 | Q37: 6738.195018 | R37: -1.478759713 | S37: -0.4597466166 | T37: 1.93850633
A38: 30 | C38: 18.00031662 | D38: 749.9739649 | E38: 749.9981137 | F38: 749.9575629 | G38: 0.09999946146 | H38: 0.508051764 | I38: 210.4442469 | J38: 210.4446833 | K38: 210.4452053 | L38: 210.447981 | M38: 213.8158777 | N38: 863.7864907 | O38: 8696.711347 | P38: 800.546458 | Q38: 6738.182523 | R38: -1.876708226 | S38: -0.1019800149 | T38: 1.978688241

Sheet GPE
F10: VALUE | G10: CAPITAL | H10: GENERAL | I10: NON_DUR | J10: BOURGS | K10: PRLTRT
M11: + XPT;
D12: 0 | F12: =F37/F$26 -> 0 | G12: 0 | H12: 0 | I12: 0 | J12: 0 | K12: 0 | M12: - MPT
D13: r | E13: R | F13: 0 | G13: 1 | H13: 2 | I13: 3 | J13: L | K13: N
C14: VALUE | D14: =-F37 -> 0 | E14: 0 | F14: =F39/F$26 -> 309552.4676 | G14: =-G12-SUM(G15:G19) -> -100 | H14: =-H12-SUM(H15:H19) -> -750 | I14: =-I12-SUM(I15:I19) -> -3200 | J14: =-J12-SUM(J15:J19) -> -876 | K14: =-K12-SUM(K15:K19) -> -8766 | L14: 0 | M14: VALUE
C15: CAPITAL | D15: =G39-F40 -> -16991.26862 | E15: 1 | F15: -84956.36248 | G15: 30 | H15: 200 | I15: 800 | J15: 20 | K15: 600 | L15: 1 | M15: CAPITAL
C16: GENERAL | D16: =H39-F41 -> -14578.35223 | E16: 2 | F16: -72891.77802 | G16: 25 | H16: 100 | I16: 700 | J16: 30 | K16: 600 | L16: 2 | M16: GENERAL | P16: Experimenters are invited to change
C17: NON_DUR | D17: =I39-F42 -> -13347.81037 | E17: 3 | F17: -66739.0777 | G17: 20 | H17: 150 | I17: 500 | J17: 26 | K17: 600 | L17: 3 | M17: NON_DUR | P17: any data set in red type that
C18: BOURGS | D18: =J39-F43 -> 40425.70948 | E18: L | F18: -62719.38856 | G18: 20 | H18: 200 | I18: 900 | J18: 800 | K18: 200 | L18: L | M18: BOURGS | P18: appears within the marquee.
C19: PRLTRT | D19: =K39-F44 -> 4491.721738 | E19: N | F19: -22245.86087 | G19: 5 | H19: 100 | I19: 300 | J19: 0 | K19: 6766 | L19: N | M19: PRLTRT
F20: 0 | G20: 1 | H20: 2 | I20: 3 | J20: L | K20: N
F23: VALUE | G23: CAPITAL | H23: GENERAL | I23: NON_DUR | J23: BOURGS | K23: PRLTRT
D25: Interest rate | F25: 0 | G25: 1 | H25: 2 | I25: 3 | J25: L | K25: N
D26: 0.1 | E26: P | F26: 2 | G26: 1869.039936 | H26: 213.8158777 | I26: 45.8831143 | J26: 1118.592995 | K26: 20 | M26: Prices
J28: Investment Fractions
J29: 0.9 | K29: =1-J29 -> 0.1
J30: L | K30: N
F35: VALUE | G35: CAPITAL | H35: GENERAL | I35: NON_DUR | J35: BOURGS | K35: PRLTRT
M36: + XPT;
F37: =-SUM(G37:K37) -> 0 | G37: =G$26*G12 -> 0 | H37: =H$26*H12 -> 0 | I37: =I$26*I12 -> 0 | J37: =J$26*J12 -> 0 | K37: =K$26*K12 -> 0 | M37: - MPT
E38: PR | F38: 0 | G38: 1 | H38: 2 | I38: 3 | J38: L | K38: N
E39: 0 | F39: =-F37-SUM(F40:F44) -> 619104.9353 | G39: -186903.9936 | H39: -160361.9083 | I39: -146825.9658 | J39: -85013.06765 | K39: -40000 | L39: 0 | M39: VALUE
C40: % return > | D40: =D15/F40 -> 0.0999999772 | E40: 1 | F40: =-SUM(G40:K40) -> -169912.725 | G40: =G$26*G15 -> 56071.19807 | H40: 42763.17554 | I40: 36706.49144 | J40: 22371.85991 | K40: 12000 | L40: 1 | M40: CAPITAL
C41: on asset | D41: =D16/F41 -> 0.09999997685 | E41: 2 | F41: =-SUM(G41:K41) -> -145783.556 | G41: 46725.9984 | H41: 21381.58777 | I41: 32118.18001 | J41: 33557.78986 | K41: 12000 | L41: 2 | M41: GENERAL
C42: turnover | D42: =D17/F42 -> 0.09999996125 | E42: 3 | F42: =-SUM(G42:K42) -> -133478.1554 | G42: 37380.79872 | H42: 32072.38165 | I42: 22941.55715 | J42: 29083.41788 | K42: 12000 | L42: 3 | M42: NON_DUR
E43: L | F43: =-SUM(G43:K43) -> -125438.7771 | G43: =G$26*G18 -> 37380.79872 | H43: 42763.17554 | I43: 41294.80287 | K43: =K$26*K18 -> 4000 | L43: L | M43: BOURGS
E44: N | F44: =-SUM(G44:K44) -> -44491.72174 | G44: 9345.199679 | H44: 21381.58777 | I44: 13764.93429 | J44: =J$26*J19 -> 0 | L44: N | M44: PRLTRT
F45: 0 | G45: 1 | H45: 2 | I45: 3 | J45: L | K45: N
F47: VALUE | G47: CAPITAL | H47: GENERAL | I47: NON_DUR | J47: BOURGS | K47: PRLTRT

Sheet Utility
F9: VALUE | G9: CAPITAL | H9: GENERAL | I9: NON_DUR | J9: BOURGS | K9: PRLTRT
E10: E | F10: 0 | G10: 1 | H10: 2 | I10: 3 | J10: L | K10: N
C11: VALUE | E11: 0 | F11: =GPE!F14 -> 309552.4676 | G11: =GPE!G14 -> -100 | H11: =GPE!H14 -> -750 | I11: =GPE!I14 -> -3200 | J11: =GPE!J14 -> -876 | K11: =GPE!K14 -> -8766 | L11: 0 | M11: VALUE
C12: CAPITAL | E12: 1 | G12: =GPE!G15 -> 30 | H12: =GPE!H15 -> 200 | I12: =GPE!I15 -> 800 | J12: =GPE!J15 -> 20 | K12: =GPE!K15 -> 600 | L12: 1 | M12: CAPITAL
C13: GENERAL | E13: 2 | G13: =GPE!G16 -> 25 | H13: =GPE!H16 -> 100 | I13: =GPE!I16 -> 700 | J13: =GPE!J16 -> 30 | K13: =GPE!K16 -> 600 | L13: 2 | M13: GENERAL
C14: NON_DUR | E14: 3 | G14: =GPE!G17 -> 20 | H14: =GPE!H17 -> 150 | I14: =GPE!I17 -> 500 | J14: =GPE!J17 -> 26 | K14: =GPE!K17 -> 600 | L14: 3 | M14: NON_DUR
C15: BOURGS | E15: L | G15: =GPE!G18 -> 20 | H15: =GPE!H18 -> 200 | I15: =GPE!I18 -> 900 | J15: =GPE!J18 -> 800 | K15: =GPE!K18 -> 200 | L15: L | M15: BOURGS
C16: PRLTRT | E16: N | G16: =GPE!G19 -> 5 | H16: =GPE!H19 -> 100 | I16: =GPE!I19 -> 300 | J16: =GPE!J19 -> 0 | K16: =GPE!K19 -> 6766 | L16: N | M16: PRLTRT
F17: 0 | G17: 1 | H17: 2 | I17: 3 | J17: L | K17: N
F18: VALUE | G18: CAPITAL | H18: GENERAL | I18: NON_DUR | J18: BOURGS | K18: PRLTRT
F22: 0 | G22: 1 | H22: 2 | I22: 3 | J22: L | K22: N
E23: P | F23: =GPE!F26 -> 2 | G23: =GPE!G26 -> 1869.039936 | H23: =GPE!H26 -> 213.8158777 | I23: =GPE!I26 -> 45.8831143 | J23: =GPE!J26 -> 1118.592995 | K23: =GPE!K26 -> 20
F24: VALUE | G24: CAPITAL | H24: GENERAL | I24: NON_DUR | J24: BOURGS | K24: PRLTRT
H32: Sectors' Production and Utility Tradeoffs, physical units/year
F35: VALUE | G35: CAPITAL | H35: GENERAL | I35: NON_DUR | J35: BOURGS | K35: PRLTRT
D36: z | E36: U | F36: 0 | G36: 1 | H36: 2 | I36: 3 | J36: L | K36: N
C37: VALUE | D37: 0 | E37: 0 | F37: =-F11-(G23*(G37+G11)+H23*(H37+H11)+I23*(I37+I11)+J23*(J41+J15)+K23*(K42+K16))/F23 -> -1747827.277 | G37: =IF(G11<0,D38/G23-G11,0) -> 709.0221284 | H37: =IF(H11<0,D39/H23-H11,0) -> 5283.704347 | I37: =IF(I11<0,D40/I23-I11,0) -> 22353.65259 | J37: =-J11 -> 876 | K37: =-K11 -> 8766 | L37: 0 | M37: VALUE
C38: CAPITAL | D38: 1138286.68 | E38: 1 | G38: =IF(G12>0,$D38/G$23-G12,0) -> 579.0221284 | H38: 5123.677045 | I38: 24008.40059 | J38: 997.6057642 | K38: 56314.33399 | L38: 1 | M38: CAPITAL
C39: GENERAL | D39: 969377.9742 | E39: 2 | G39: 493.6502202 | H39: 4433.704347 | I39: 20427.11809 | J39: 836.6047242 | K39: 47868.89871 | L39: 2 | M39: GENERAL
C40: NON_DUR | D40: 878829.2311 | E40: 3 | G40: 450.2035597 | H40: 3960.215016 | I40: 18653.65259 | J40: 759.6559399 | K40: 43341.46156 | L40: 3 | M40: NON_DUR
C41: BOURGS | D41: 70745.46403 | E41: L | G41: =IF(G15>0,$D41/G$23-G15,0) -> 17.85123189 | H41: 130.8709568 | I41: 641.8627332 | J41: =IF(J15>0,-$D41/J$23-J15,0) -> -863.2450447 | K41: =IF(K15>0,$D41/K$23-K15,0) -> 3337.273201 | L41: L | M41: BOURGS
C42: PRLTRT | D42: 39198.80205 | E42: N | G42: 15.97269368 | H42: 83.32970625 | I42: 554.3186888 | J42: =IF(J16>0,$D42/J$23-J16,0) -> 0 | K42: =IF(K16>0,-$D42/K$23-K16,0) -> -8725.940102 | L42: N | M42: PRLTRT
F43: 0 | G43: 1 | H43: 2 | I43: 3 | J43: L | K43: N
F44: VALUE | G44: CAPITAL | H44: GENERAL | I44: NON_DUR | J44: BOURGS | K44: PRLTRT

Sheet IState
I4: Commodities' Turnover Fractions, dimensionless / year
D10: NPV | F10: Investment Term
D11: =(1-D14)^-F11 -> 0.5131581182 | F11: 7 | G11: yrs.
D13: n | F13: (1-1/NPV)/T | H13: VALUE | I13: CAPITAL | J13: GENERAL | K13: NON_DUR | L13: BOURGS | M13: PRLTRT
D14: -0.1 | F14: =(1-1/D11)/F11 -> -0.1355310143 | G14: V | H14: 1 | I14: 0.1 | J14: 0.3333333333 | K14: 1 | L14: 1 | M14: 1
H15: 0 | I15: 1 | J15: 2 | K15: 3 | L15: L | M15: N
H23: VALUE | I23: CAPITAL | J23: GENERAL | K23: NON_DUR | L23: BOURGS | M23: PRLTRT | N23: + XPT;
H24: 0 | I24: 0 | J24: 0 | K24: 0 | L24: 0 | M24: 0 | N24: - MPT
D25: e - | F25: e + | G25: E | H25: 0 | I25: 1 | J25: 2 | K25: 3 | L25: L | M25: N
B26: VALUE | C26: 0 | G26: 0 | H26: =GPE!F14 -> 309552.4676 | I26: =GPE!G14 -> -100 | J26: =GPE!H14 -> -750 | K26: =GPE!I14 -> -3200 | L26: =GPE!J14 -> -876 | M26: =GPE!K14 -> -8766 | N26: 0
B27: CAPITAL | C27: 1 | D27: =GPE!D15 -> -16991.26862 | G27: 1 | H27: =GPE!F15 -> -84956.36248 | I27: =GPE!G15 -> 30 | J27: =GPE!H15 -> 200 | K27: =GPE!I15 -> 800 | L27: =GPE!J15 -> 20 | M27: =GPE!K15 -> 600 | N27: 1
B28: GENERAL | C28: 2 | D28: =GPE!D16 -> -14578.35223 | G28: 2 | H28: =GPE!F16 -> -72891.77802 | I28: =GPE!G16 -> 25 | J28: =GPE!H16 -> 100 | K28: =GPE!I16 -> 700 | L28: =GPE!J16 -> 30 | M28: =GPE!K16 -> 600 | N28: 2
B29: NON_DUR | C29: 3 | D29: =GPE!D17 -> -13347.81037 | G29: 3 | H29: =GPE!F17 -> -66739.0777 | I29: =GPE!G17 -> 20 | J29: =GPE!H17 -> 150 | K29: =GPE!I17 -> 500 | L29: =GPE!J17 -> 26 | M29: =GPE!K17 -> 600 | N29: 3
B30: BOURGS | C30: L | F30: =GPE!D18 -> 40425.70948 | G30: L | H30: =GPE!F18 -> -62719.38856 | I30: =GPE!G18 -> 20 | J30: =GPE!H18 -> 200 | K30: =GPE!I18 -> 900 | L30: =GPE!J18 -> 800 | M30: =GPE!K18 -> 200 | N30: L
B31: PRLTRT | C31: N | F31: =GPE!D19 -> 4491.721738 | G31: N | H31: =GPE!F19 -> -22245.86087 | I31: =GPE!G19 -> 5 | J31: =GPE!H19 -> 100 | K31: =GPE!I19 -> 300 | L31: =GPE!J19 -> 0 | M31: =GPE!K19 -> 6766 | N31: N
H32: 0 | I32: 1 | J32: 2 | K32: 3 | L32: L | M32: N
H33: VALUE | I33: CAPITAL | J33: GENERAL | K33: NON_DUR | L33: BOURGS | M33: PRLTRT
H43: =H24/H$14/3 -> 0 | I43: 0 | J43: 0 | K43: 0 | L43: 0 | M43: 0
G44: A | H44: 0 | I44: 1 | J44: 2 | K44: 3 | L44: L | M44: N
C45: 0 | G45: 0 | H45: =H26/H$14/3 -> 103184.1559 | I45: -333.3333333 | J45: -750 | K45: -1066.666667 | L45: -292 | M45: -2922 | N45: 0
C46: 1 | D46: =D27/D14 -> 169912.6862 | G46: 1 | H46: -28318.78749 | I46: 100 | J46: 200 | K46: 266.6666667 | L46: 6.666666667 | M46: 200 | N46: 1
C47: 2 | D47: =D28/D14 -> 145783.5223 | G47: 2 | H47: -24297.25934 | I47: 83.33333333 | J47: 100 | K47: 233.3333333 | L47: 10 | M47: 200 | N47: 2
C48: 3 | D48: =D29/D14 -> 133478.1037 | G48: 3 | H48: -22246.35923 | I48: 66.66666667 | J48: 150 | K48: 166.6666667 | L48: 8.666666667 | M48: 200 | N48: 3
C49: L | F49: =F30/F14/3 -> -99425.48253 | G49: L | H49: -20906.46285 | I49: 66.66666667 | J49: 200 | K49: 300 | L49: 266.6666667 | M49: 66.66666667 | N49: L
C50: N | F50: =F31/F14/3 -> -11047.2174 | G50: N | H50: -7415.286956 | I50: 16.66666667 | J50: 100 | K50: 100 | L50: 0 | M50: 2255.333333 | N50: N
H53: =H43 -> 0 | I53: 0 | J53: 0 | K53: 0 | L53: 0 | M53: 0
G54: B | H54: 0 | I54: 1 | J54: 2 | K54: 3 | L54: L | M54: N
G55: 0 | H55: =H45 -> 103184.1559 | I55: -333.3333333 | J55: -750 | K55: -1066.666667 | L55: -292 | M55: -2922 | N55: 0
G56: 1 | H56: -28318.78749 | I56: 100 | J56: 200 | K56: 266.6666667 | L56: 6.666666667 | M56: 200 | N56: 1
G57: 2 | H57: -24297.25934 | I57: 83.33333333 | J57: 100 | K57: 233.3333333 | L57: 10 | M57: 200 | N57: 2
G58: 3 | H58: -22246.35923 | I58: 66.66666667 | J58: 150 | K58: 166.6666667 | L58: 8.666666667 | M58: 200 | N58: 3
F59: =F49 -> -99425.48253 | G59: L | H59: -20906.46285 | I59: 66.66666667 | J59: 200 | K59: 300 | L59: 266.6666667 | M59: 66.66666667 | N59: L
F60: =F50 -> -11047.2174 | G60: N | H60: -7415.286956 | I60: 16.66666667 | J60: 100 | K60: 100 | L60: 0 | M60: 2255.333333 | N60: N
H63: =H53 -> 0 | I63: 0 | J63: 0 | K63: 0 | L63: 0 | M63: 0
G64: C | H64: 0 | I64: 1 | J64: 2 | K64: 3 | L64: L | M64: N
G65: 0 | H65: =H55 -> 103184.1559 | I65: -333.3333333 | J65: -750 | K65: -1066.666667 | L65: -292 | M65: -2922 | N65: 0
G66: 1 | H66: -28318.78749 | I66: 100 | J66: 200 | K66: 266.6666667 | L66: 6.666666667 | M66: 200 | N66: 1
G67: 2 | H67: -24297.25934 | I67: 83.33333333 | J67: 100 | K67: 233.3333333 | L67: 10 | M67: 200 | N67: 2
G68: 3 | H68: -22246.35923 | I68: 66.66666667 | J68: 150 | K68: 166.6666667 | L68: 8.666666667 | M68: 200 | N68: 3
F69: =F59 -> -99425.48253 | G69: L | H69: -20906.46285 | I69: 66.66666667 | J69: 200 | K69: 300 | L69: 266.6666667 | M69: 66.66666667 | N69: L
F70: =F60 -> -11047.2174 | G70: N | H70: -7415.286956 | I70: 16.66666667 | J70: 100 | K70: 100 | L70: 0 | M70: 2255.333333 | N70: N
L73: =Utility!J41/L14 -> -863.2450447 | M73: =Utility!K42/M14 -> -8725.940102

Sheet Module1 (hidden)

Sheet Module2 (hidden)
